bitfinex-derivatives/quotes_ETHF0:USTF0_20250824
["timestamp","ask_amount","ask_price","bid_price","bid_amount"]
[1756076054560,0.3357,4771.4,4771.3,0.7642]
[1756076055059,0.569,4771.4,4771.3,0.6196]
[1756076055258,0.569,4771.4,4771.3,20.2586]
[1756076055856,0.7055,4772.1,4771.5,0.1617]
[1756076056057,1.388,4772.1,4772.0,0.4579]
[1756076056365,2.09026299,4772.1,4772.0,0.4579]
[1756076056560,2.42596299,4772.1,4772.0,0.4579]
[1756076056758,2.42596299,4772.1,4772.0,20.2576]
[1756076057162,1.7237,4772.1,4772.0,20.2576]
[1756076057665,1.1432,4772.1,4772.0,20.2576]
[1756076057960,0.346,4772.5,4772.3,0.6025]
[1756076057961,0.3357,4772.4,4772.3,0.6025]
[1756076058167,0.7055,4772.6,4772.5,0.6196]
[1756076058460,1.0515,4772.6,4772.5,20.2556]
[1756076058664,0.5837,4773.0,4772.5,20.2556]
[1756076058858,0.7055,4772.2,4772.1,0.4579]
[1756076059062,1.7237,4772.2,4772.1,19.636]
[1756076059365,1.7237,4772.2,4772.1,20.2556]
[1756076061065,0.7055,4771.7,4771.6,30.183]
[1756076061261,0.3357,4771.7,4771.6,50.1051]
[1756076061465,3.2078,4772.8,4772.0,0.4428]
[1756076061667,0.2377,4772.8,4772.2,0.7299]
[1756076061857,1.1432,4772.8,4772.7,0.5948]
[1756076062067,1.1432,4772.8,4772.7,20.2288]
[1756076062264,0.3357,4772.8,4772.7,20.3639]
[1756076063570,0.3357,4773.0,4772.9,0.5948]
[1756076063967,0.3357,4773.0,4772.9,0.7299]
[1756076064369,1.7237,4773.0,4772.9,19.632]
[1756076064560,2.42576137,4773.0,4772.9,19.632]
[1756076065670,2.42576137,4773.0,4772.9,20.2268]
[1756076066769,2.07976137,4773.0,4772.9,20.2268]
[1756076067766,2.07976137,4773.0,4772.9,20.2238]
[1756076067972,2.07976137,4773.0,4772.9,20.2228]
[1756076068271,0.70206137,4773.0,4772.9,24.77416]
[1756076068570,3.2078,4773.3,4773.2,0.7314]
[1756076068771,3.91151762,4773.3,4773.2,0.7314]
[1756076068974,3.91151762,4773.3,4773.2,0.89668717]
[1756076069468,0.3205,4774.5,4773.2,7.37308717]
[1756076069668,1.368,4774.3,4774.2,0.2116]
[1756076069875,2.07136189,4774.3,4774.2,19.8376]
[1756076070375,2.39186189,4774.3,4774.2,20.0761]
[1756076071264,2.39186189,4774.3,4774.2,20.0751]
[1756076072376,1.6885,4774.3,4774.2,0.4501]
[1756076072577,1.6885,4774.3,4774.2,20.0741]
[1756076072773,2.40977124,4774.3,4774.2,20.2231]
[1756076073272,0.5337,4774.3,4774.2,20.2231]
[1756076073471,1.6885,4774.3,4774.2,20.2231]
[1756076073672,1.3418,4774.3,4774.2,20.2231]
[1756076073976,1.3418,4774.3,4774.2,20.2211]
[1756076073977,2.4092999,4774.3,4774.2,20.2211]
[1756076074178,1.6885,4774.3,4774.2,20.2211]
[1756076075079,0.3205,4774.3,4774.2,20.2015]
[1756076075678,0.3205,4774.3,4774.2,20.3476]
[1756076076579,0.3205,4774.3,4774.2,0.7256]
[1756076076771,3.2078,4774.5,4774.2,20.3436]
[1756076076973,3.2078,4774.5,4774.4,0.4409]
[1756076077173,3.92802332,4774.5,4774.4,0.7164]
[1756076077376,0.72022332,4774.5,4774.4,20.3334]
[1756076077682,1.0227,4775.2,4775.1,0.4409]
[1756076077877,0.676,4774.9,4774.8,0.587]
[1756076078075,0.9965,4774.9,4774.8,20.203]
[1756076078384,1.25373761,4774.9,4774.8,20.3324]
[1756076078578,0.72003761,4774.9,4774.8,20.3324]
[1756076078775,0.59063761,4774.9,4774.8,20.3324]
[1756076078978,0.9965,4775.5,4775.4,0.2338]
[1756076079173,1.3418,4775.5,4775.4,19.9959]
[1756076079373,3.2078,4775.6,4775.4,19.8498]
[1756076079579,3.2078,4775.6,4775.5,0.3799]
[1756076079873,3.5283,4775.6,4775.5,0.3799]
[1756076080282,0.3453,4776.0,4775.5,0.2338]
[1756076080484,0.3453,4776.0,4775.8,0.2338]
[1756076080684,0.3453,4776.0,4775.9,0.3799]
[1756076080880,0.7841,4776.0,4775.9,0.3799]
[1756076081080,1.3418,4776.0,4775.9,0.3799]
[1756076081783,1.6885,4776.0,4775.9,0.3799]
[1756076081983,1.6885,4776.0,4775.5,0.1461]
[1756076082278,0.676,4775.7,4775.6,0.3799]
[1756076082475,1.6885,4775.7,4775.6,0.3799]
[1756076083276,1.6885,4775.7,4775.6,0.2338]
[1756076083482,3.7787,4776.1,4775.6,0.1461]
[1756076083783,1.0213,4776.9,4776.8,0.2338]
[1756076084090,1.3418,4776.9,4776.8,19.9889]
[1756076084680,1.6885,4776.9,4776.8,19.9889]
[1756076084879,1.6885,4776.9,4776.8,19.8428]
[1756076085387,1.3418,4776.9,4776.8,19.9889]
[1756076085986,1.6885,4776.9,4776.8,19.9889]
[1756076086185,0.4388,4776.0,4772.1,21.16810993]
[1756076086378,0.4388,4775.4,4775.3,0.1461]
[1756076086584,0.676,4774.3,4774.0,3.2078]
[1756076086778,0.3205,4774.2,4774.1,0.1461]
[1756076086984,1.0125,4774.6,4774.1,0.3799]
[1756076087184,0.5709,4774.6,4774.4,0.2338]
[1756076087387,1.368,4774.5,4774.4,0.2338]
[1756076087588,0.676,4774.5,4774.2,19.604]
[1756076087787,0.879,4774.4,4774.3,0.3799]
[1756076088187,1.6885,4774.4,4774.3,19.8378]
[1756076088488,1.3418,4774.4,4774.3,19.9839]
[1756076088887,1.6885,4774.4,4774.3,0.2338]
[1756076089085,3.2078,4775.4,4774.8,0.2338]
[1756076089389,0.6658,4775.4,4774.9,19.603]
[1756076089586,3.2078,4775.7,4775.0,19.603]
[1756076089882,1.0125,4775.1,4775.0,19.7491]
[1756076090077,0.3205,4775.6,4775.1,0.1461]
[1756076090282,0.3205,4775.6,4775.3,0.1461]
[1756076090283,0.3205,4775.4,4775.3,0.1461]
[1756076090479,0.3205,4775.4,4775.3,3.3539]
[1756076090683,0.6658,4775.4,4775.3,3.3539]
[1756076090984,1.38344681,4775.4,4775.3,3.3539]
[1756076091184,1.73014681,4775.4,4775.3,3.3539]
[1756076091387,1.73014681,4775.4,4775.3,0.1461]
[1756076091584,1.73014681,4775.4,4775.3,19.603]
[1756076091787,0.692,4775.2,4774.4,30.3081]
[1756076091985,0.6658,4775.0,4774.5,19.602]
[1756076092288,1.0125,4774.8,4774.5,19.602]
[1756076092480,0.71764681,4774.7,4774.6,0.1461]
[1756076092883,1.38344681,4774.7,4774.6,19.7471]
[1756076093290,1.73014681,4774.7,4774.6,19.7471]
[1756076093493,2.05944681,4774.7,4774.6,19.9809]
[1756076093693,1.03814681,4774.7,4774.6,19.9809]
[1756076094187,0.71764681,4774.7,4774.6,19.9809]
[1756076095788,1.59664681,4774.7,4774.6,0.3799]
[1756076096091,2.40614681,4774.7,4774.6,19.8348]
[1756076096290,2.40614681,4774.7,4774.6,0.2338]
[1756076096590,2.40614681,4774.7,4774.4,30.162]
[1756076096889,0.9965,4774.5,4774.4,30.162]
[1756076097095,2.40614681,4774.5,4774.4,49.762]
[1756076097296,2.40614681,4774.5,4774.4,49.9081]
[1756076097894,1.03814681,4774.5,4774.4,49.9081]
[1756076098189,0.71764681,4774.5,4774.4,49.9081]
[1756076098787,1.04894681,4774.5,4774.4,49.9081]
[1756076099294,0.71764681,4774.5,4774.4,49.9081]
[1756076099896,1.04894681,4774.5,4774.4,49.9081]
[1756076100195,2.36894681,4774.5,4774.4,30.162]
[1756076100385,0.4391,4773.7,4773.6,0.1374]
[1756076100590,1.6513,4773.7,4773.6,0.2199]
[1756076100795,2.36640131,4773.7,4773.6,19.599]
[1756076101294,2.36640131,4773.7,4773.3,3.62683]
[1756076101498,1.3196,4773.7,4773.6,19.599]
[1756076101700,0.8827,4773.6,4773.5,0.77631]
[1756076101896,0.8827,4773.6,4773.5,0.3573]
[1756076102196,1.6513,4773.6,4773.5,19.9563]
[1756076102790,1.6513,4773.6,4773.5,0.3573]
[1756076102996,1.6513,4773.6,4773.5,19.9563]
[1756076104295,1.6513,4773.6,4773.5,0.3573]
[1756076104696,1.6513,4773.6,4773.5,19.9563]
[1756076105401,0.6564,4773.6,4773.5,19.8189]
[1756076105693,0.6564,4773.6,4773.3,3.2078]
[1756076105891,0.9877,4773.6,4773.5,0.3573]
[1756076106290,0.5508,4773.6,4773.5,0.3573]
[1756076106499,1.6513,4773.6,4773.5,0.3573]
[1756076106695,1.6513,4773.6,4773.5,0.2199]
[1756076106999,1.6513,4773.6,4773.4,19.598]
[1756076107199,0.9949,4773.4,4772.7,30.2994]
[1756076107394,3.2078,4774.1,4772.7,30.2994]
[1756076107395,1.6513,4772.9,4772.7,30.162]
[1756076107598,1.6513,4772.8,4772.7,30.162]
[1756076107790,1.6513,4772.8,4771.9,3.2078]
[1756076107996,1.6513,4772.0,4771.9,3.4277]
[1756076108195,1.6513,4772.0,4771.9,0.2199]
[1756076108501,4.6564,4772.0,4771.7,0.16690651]
[1756076108797,1.6513,4771.8,4771.7,0.16690651]
[1756076109001,0.6564,4771.5,4771.4,19.598]
[1756076109202,1.6513,4771.5,4771.4,19.598]
[1756076109700,0.6564,4770.9,4770.8,0.3573]
[1756076109901,1.6513,4770.9,4770.8,19.8179]
[1756076110303,1.6513,4770.9,4770.5,3.2078]
[1756076110604,1.6513,4770.6,4770.5,3.5651]
[1756076110799,1.6513,4770.6,4770.5,19.6]
[1756076110999,1.6513,4770.6,4769.8,33.3758]
[1756076111000,0.6632,4770.5,4769.8,33.3758]
[1756076111199,0.8828,4770.0,4769.9,0.3573]
[1756076111397,1.3196,4770.0,4769.9,19.9563]
[1756076111601,1.1,4770.0,4769.9,19.9563]
[1756076111797,0.5508,4770.0,4769.9,19.9563]
[1756076112199,1.3196,4770.0,4769.9,0.2199]
[1756076112505,0.3313,4770.0,4769.9,19.9563]
[1756076112896,0.8827,4770.5,4769.9,23.8189]
[1756076113094,0.3313,4770.9,4770.8,0.2199]
[1756076113304,0.3313,4770.9,4770.8,19.9593]
[1756076113498,3.2078,4771.5,4770.8,19.9593]
[1756076113702,0.3313,4771.4,4771.3,0.1374]
[1756076113900,0.6632,4771.4,4771.3,19.9593]
[1756076114201,3.2078,4771.5,4771.4,0.3573]
[1756076114505,3.2078,4771.5,4771.4,0.7765]
[1756076114808,3.2078,4771.5,4771.4,19.9593]
[1756076114809,3.7586,4771.5,4771.4,19.9593]
[1756076115003,3.5391,4771.5,4771.4,19.9593]
[1756076116105,0.3313,4771.5,4771.4,19.9593]
[1756076117600,0.3319,4772.6,4771.5,1.04798]
[1756076117805,0.3319,4773.2,4771.8,3.2078]
[1756076118011,0.3319,4773.2,4772.2,0.41912]
[1756076118204,0.3317,4773.0,4772.4,0.1374]
[1756076118406,0.3313,4773.1,4772.8,0.41907]
[1756076118606,0.3313,4773.1,4773.0,0.1374]
[1756076118811,0.3313,4773.1,4773.0,19.7424]
[1756076119307,3.2078,4773.4,4773.0,19.7424]
[1756076119511,0.3313,4773.8,4773.1,0.1374]
[1756076120307,0.6636,4773.7,4773.1,0.1374]
[1756076120606,3.5391,4774.0,4773.6,0.419]
[1756076120811,3.5391,4774.0,4773.8,0.41898]
[1756076121012,3.5391,4774.0,4773.9,19.7347]
[1756076121811,3.5391,4774.0,4773.9,0.1307]
[1756076122012,3.5391,4774.0,4773.9,19.7347]
[1756076122199,0.3313,4774.0,4773.9,0.1307]
[1756076122404,0.3313,4774.0,4773.9,19.7337]
[1756076123100,0.6632,4774.0,4773.9,0.1307]
[1756076123307,0.6632,4774.0,4773.9,19.7337]
[1756076123506,0.8827,4774.0,4773.9,19.9429]
[1756076123713,0.5508,4774.0,4773.9,19.9429]
[1756076123915,0.3313,4774.0,4773.9,19.9429]
[1756076124707,0.3319,4774.4,4773.9,20.36187]
[1756076124909,0.3313,4774.3,4774.2,0.2092]
[1756076125113,0.3313,4774.3,4774.2,0.3399]
[1756076126304,0.7704,4774.1,4774.0,0.3399]
[1756076126508,0.5508,4774.1,4774.0,0.3399]
[1756076126911,0.3313,4774.1,4774.0,0.3399]
[1756076127911,3.2078,4774.8,4774.0,19.8092]
[1756076128211,0.9858,4774.2,4774.1,0.3314]
[1756076128514,1.637,4774.2,4774.1,0.2039]
[1756076129014,1.637,4774.2,4774.1,19.599]
[1756076129910,2.35577822,4774.2,4774.1,19.599]
[1756076131306,1.37887822,4774.2,4773.7,3.2078]
[1756076131511,0.6601,4773.8,4773.7,3.5392]
[1756076131712,1.37909211,4773.8,4773.7,23.1362]
[1756076131918,2.35599211,4773.8,4773.7,23.1362]
[1756076132316,0.7489,4774.4,4773.8,0.1258]
[1756076132521,1.637,4773.9,4773.8,0.3271]
[1756076132818,2.3561607,4773.9,4773.8,0.3271]
[1756076133518,1.0421607,4773.9,4773.8,0.3271]
[1756076133714,0.5279,4774.5,4773.9,0.41897]
[1756076133911,0.5279,4774.5,4774.4,0.2013]
[1756076134118,1.79382161,4774.5,4774.4,19.9241]
[1756076134514,2.02802161,4774.5,4774.4,19.9241]
[1756076134918,2.35622161,4774.5,4774.4,19.9241]
[1756076135316,2.35622161,4774.5,4774.4,19.7983]
[1756076135516,2.35622161,4774.5,4774.4,19.9241]
[1756076135719,1.04222161,4774.5,4774.4,19.9241]
[1756076135917,2.35622161,4774.5,4774.4,19.9241]
[1756076136715,2.35622161,4774.5,4774.4,0.3271]
[1756076137020,2.35622161,4774.5,4774.4,19.7973]
[1756076137421,2.3677112,4774.5,4774.4,19.7973]
[1756076137617,2.3677112,4774.5,4774.4,19.9231]
[1756076138524,2.3677112,4774.5,4774.4,19.7973]
[1756076140125,2.3677112,4774.5,4774.4,19.9231]
[1756076140322,2.3677112,4774.5,4774.4,19.596]
[1756076140522,2.3677112,4774.5,4774.4,19.7973]
[1756076140818,2.3677112,4774.5,4774.4,0.2013]
[1756076141021,1.637,4774.4,4774.3,19.594]
[1756076141219,2.3677112,4774.4,4774.3,19.9211]
[1756076141425,2.0395112,4774.4,4774.3,19.9211]
[1756076141619,1.4796112,4774.4,4774.3,19.9211]
[1756076141826,2.3677112,4774.4,4774.3,0.3271]
[1756076142122,2.3677112,4774.4,4774.3,19.9201]
[1756076142524,2.3677112,4774.4,4774.3,19.7943]
[1756076143322,0.2049,4773.9,4773.8,0.2013]
[1756076143522,0.2049,4773.9,4773.8,19.7933]
[1756076143723,0.5279,4773.9,4773.8,19.7933]
[1756076143927,0.5279,4773.9,4773.8,19.9191]
[1756076144628,0.323,4773.9,4773.8,19.9191]
[1756076144827,1.637,4774.7,4774.6,0.3271]
[1756076145028,2.36708413,4774.7,4774.6,19.9191]
[1756076146625,2.36708413,4774.7,4774.6,19.7933]
[1756076147022,0.6512,4774.6,4774.2,0.1258]
[1756076147220,1.3088,4774.3,4773.8,0.1258]
[1756076147424,2.36708413,4774.2,4774.1,0.2013]
[1756076147633,2.36708413,4774.2,4774.1,19.7923]
[1756076148530,2.36708413,4774.2,4774.1,0.2013]
[1756076148829,2.36708413,4774.2,4774.1,19.9171]
[1756076149028,0.6487,4774.1,4773.8,0.1258]
[1756076149234,1.637,4773.9,4773.8,0.3271]
[1756076149731,1.637,4773.9,4773.8,19.9171]
[1756076151421,1.3088,4773.9,4773.8,19.9171]
[1756076151626,0.323,4773.9,4773.8,19.9171]
[1756076154226,1.3088,4773.9,4773.8,19.9171]
[1756076154427,1.637,4773.9,4773.8,19.9171]
[1756076155226,1.3088,4773.9,4773.8,19.9171]
[1756076155433,0.323,4773.9,4773.8,19.9171]
[1756076156438,0.7489,4773.9,4773.8,19.9171]
[1756076156628,1.0746,4773.9,4773.8,19.9171]
[1756076156830,1.3088,4773.9,4773.8,19.9141]
[1756076157029,0.5279,4773.9,4773.8,19.9141]
[1756076157632,0.323,4773.9,4773.8,19.9141]
[1756076158032,0.33803609,4773.9,4773.8,19.9141]
[1756076158234,1.33523609,4773.9,4773.8,19.9141]
[1756076158435,2.4033293,4773.9,4773.8,19.9141]
[1756076159035,2.0666293,4773.9,4773.8,19.9141]
[1756076159230,2.07396533,4773.9,4773.8,19.9141]
[1756076159535,2.08034585,4773.9,4773.8,19.9141]
[1756076159835,2.41704585,4773.9,4773.8,19.9141]
[1756076160035,2.41704585,4773.9,4773.8,19.9131]
[1756076160236,1.85934585,4773.9,4773.8,0.3271]
[1756076160431,1.29284585,4773.9,4773.8,19.9121]
[1756076160730,1.29284585,4773.9,4773.8,0.3271]
[1756076160936,1.29284585,4773.9,4773.8,19.9121]
[1756076161326,1.29335247,4773.9,4773.8,19.9121]
[1756076162740,0.64525247,4773.9,4773.8,19.9121]
[1756076162931,0.64525247,4773.9,4773.8,23.9121]
[1756076163840,0.3175,4774.7,4773.8,23.585]
[1756076164137,0.3175,4774.7,4774.2,0.41894]
[1756076164437,0.3175,4774.5,4774.3,19.584]
[1756076164637,0.3175,4774.4,4774.3,19.584]
[1756076165741,0.3175,4774.7,4774.3,19.584]
[1756076165937,0.3175,4774.4,4773.7,3.2078]
[1756076166136,0.8717,4774.1,4773.8,19.582]
[1756076166440,0.3175,4774.4,4774.2,0.41895]
[1756076166633,0.3175,4774.4,4774.3,19.582]
[1756076167036,0.34625264,4774.4,4774.3,19.582]
[1756076167639,0.02875264,4774.4,4774.3,19.582]
[1756076168034,0.34625264,4774.4,4774.3,19.582]
[1756076168838,0.02875264,4774.4,4774.3,19.582]
[1756076169339,3.2078,4775.4,4775.2,0.41885]
[1756076169536,3.2078,4775.4,4775.3,19.58]
[1756076169734,3.2078,4776.1,4775.8,0.4188]
[1756076169937,3.2078,4776.1,4775.3,19.58]
[1756076169938,0.3175,4776.6,4775.3,5.8804363]
[1756076170138,0.5395,4776.4,4775.4,19.58]
[1756076170343,0.9733,4776.4,4775.8,3.2078]
[1756076170534,0.6558,4776.4,4775.9,19.58]
[1756076170733,0.4338,4776.4,4775.9,19.58]
[1756076170933,0.3175,4776.1,4775.9,19.58]
[1756076171736,0.662,4776.0,4775.9,19.58]
[1756076171948,1.3178,4776.0,4775.9,19.58]
[1756076172150,0.3445,4776.4,4775.9,19.58]
[1756076172345,0.3175,4776.3,4775.9,19.58]
[1756076172546,0.9733,4776.7,4776.0,19.576]
[1756076172751,0.6558,4776.0,4775.2,3.62666]
[1756076172956,0.9733,4775.8,4775.3,19.576]
[1756076173153,0.9925,4775.7,4775.3,19.74688034]
[1756076173356,0.3175,4775.5,4775.3,19.74688034]
[1756076173557,0.9987,4776.7,4775.5,0.41883]
[1756076173747,3.2078,4776.8,4775.5,0.41883]
[1756076173947,3.2078,4776.8,4775.3,19.74688034]
[1756076173948,0.3367,4776.6,4775.4,0.41884]
[1756076174153,0.9733,4776.4,4775.4,0.41884]
[1756076174355,0.9733,4776.3,4775.4,0.41884]
[1756076174557,0.9987,4776.0,4775.3,0.17088034]
[1756076174857,1.3178,4775.6,4775.5,19.575]
[1756076175056,1.3178,4775.6,4775.2,3.62666]
[1756076175057,0.9925,4775.6,4775.2,3.2078]
[1756076175253,0.3175,4775.4,4775.3,19.575]
[1756076175660,1.0958,4775.4,4775.3,19.575]
[1756076175854,1.6545,4775.4,4775.3,19.575]
[1756076176055,1.6545,4775.4,4775.2,3.2078]
[1756076176254,1.337,4775.4,4774.8,30.166]
[1756076176454,0.9733,4775.3,4774.9,19.573]
[1756076176655,0.8717,4775.2,4774.9,19.99188]
[1756076176958,0.3175,4775.0,4774.9,19.99188]
[1756076177255,0.3175,4775.0,4774.9,19.573]
[1756076177458,0.3175,4775.4,4775.0,0.41888]
[1756076177851,0.3175,4775.3,4774.9,19.573]
[1756076178256,0.3175,4775.3,4774.9,19.99188]
[1756076178451,0.3175,4775.8,4775.0,0.41888]
[1756076178657,0.3175,4775.6,4775.2,3.2078]
[1756076178860,0.9733,4775.8,4775.3,19.571]
[1756076179062,0.222,4775.4,4775.3,19.571]
[1756076179264,0.3175,4775.4,4775.3,19.571]
[1756076179465,0.3175,4775.4,4775.2,3.2078]
[1756076179654,0.6812,4775.7,4775.2,3.2078]
[1756076179853,0.3175,4775.4,4775.3,19.57]
[1756076181058,0.6558,4775.8,4775.3,19.57]
[1756076181265,0.3175,4775.6,4775.3,19.98885]
[1756076181959,3.2078,4776.2,4775.3,19.98885]
[1756076182160,0.9733,4776.1,4775.5,0.41883]
[1756076182465,0.6558,4776.1,4775.5,0.41883]
[1756076182765,0.3175,4775.8,4775.5,0.41883]
[1756076182959,0.3175,4775.8,4775.6,0.41882]
[1756076183269,0.3175,4775.7,4775.6,0.41882]
[1756076183564,0.6558,4775.6,4775.2,3.2078]
[1756076183758,0.8861,4775.4,4775.2,3.2078]
[1756076184069,0.3175,4775.3,4775.2,3.62666]
[1756076184261,0.3175,4775.3,4775.2,23.19466]
[1756076184565,0.3175,4775.3,4775.2,22.7758]
[1756076186362,0.3175,4775.9,4775.3,0.41885]
[1756076186663,3.5253,4776.2,4775.2,22.7758]
[1756076186856,0.3175,4776.1,4775.7,0.41881]
[1756076187162,0.662,4776.1,4775.8,19.566]
[1756076187466,0.3175,4775.9,4775.8,19.566]
[1756076187867,0.3175,4775.9,4775.8,22.7738]
[1756076188364,0.3175,4775.9,4775.8,3.2078]
[1756076188560,0.6365,4776.7,4775.8,22.7728]
[1756076188869,0.9813,4776.3,4775.9,0.4188]
[1756076189160,0.3418,4777.0,4776.2,0.41876]
[1756076189363,0.963,4776.7,4776.3,0.41876]
[1756076189564,0.3091,4776.6,4776.4,19.98275]
[1756076189964,0.01447685,4776.5,4776.4,19.98275]
[1756076191269,0.01447685,4776.5,4776.4,23.98275]
[1756076191664,0.3091,4777.8,4777.5,0.41866]
[1756076191968,0.3091,4778.4,4777.8,0.41862]
[1756076192160,0.3091,4778.3,4777.8,0.41862]
[1756076192360,0.6539,4778.3,4777.6,22.7698]
[1756076192561,0.6539,4778.3,4777.7,19.562]
[1756076192766,0.3091,4778.2,4778.0,0.41861]
[1756076192966,0.3091,4778.2,4778.1,19.562]
[1756076193871,0.8464,4778.2,4777.6,3.62645]
[1756076194066,1.6322,4778.1,4777.7,19.561]
[1756076194266,1.6322,4778.1,4777.6,3.2078]
[1756076194267,0.9813,4778.7,4777.6,3.3755962]
[1756076194467,0.963,4778.5,4777.9,0.41862]
[1756076194769,0.519,4778.4,4777.7,19.559]
[1756076195070,0.3091,4778.3,4777.7,19.559]
[1756076195265,0.3091,4778.3,4777.6,3.3755962]
[1756076195470,0.6692,4778.8,4777.8,19.559]
[1756076195665,3.2078,4779.1,4777.9,19.559]
[1756076195666,0.6509,4778.5,4777.9,19.559]
[1756076195872,0.8608,4778.5,4777.9,19.559]
[1756076196071,0.32132738,4778.2,4778.0,0.41861]
[1756076196371,0.01222738,4778.2,4778.1,3.2078]
[1756076196571,0.32132738,4778.2,4778.1,3.2078]
[1756076196772,1.30262738,4778.2,4778.1,22.7658]
[1756076197267,0.01222738,4778.2,4778.1,27.18441]
[1756076197874,0.01222738,4778.2,4778.1,23.18441]
[1756076198170,0.963,4779.5,4778.1,29.5390433]
[1756076198363,0.6365,4779.4,4779.0,0.41852]
[1756076198562,0.8464,4779.3,4779.1,19.97352]
[1756076198763,0.3274,4780.1,4779.1,19.555]
[1756076198974,0.963,4779.8,4779.3,0.4185]
[1756076199171,0.3091,4779.6,4779.3,0.4185]
[1756076199369,0.3274,4779.7,4779.3,0.4185]
[1756076199569,0.3091,4779.5,4779.4,19.552]
[1756076199765,1.0768,4779.3,4778.9,30.149]
[1756076199971,0.3091,4779.2,4779.0,19.552]
[1756076200274,0.6365,4779.6,4779.2,0.41851]
[1756076200471,0.3091,4779.5,4779.3,0.4185]
[1756076200670,0.3091,4779.5,4779.4,22.7598]
[1756076201070,0.3091,4779.9,4779.5,0.41849]
[1756076201272,0.3091,4779.8,4779.6,0.41847]
[1756076201465,0.4418,4780.2,4779.6,0.41847]
[1756076201466,0.3091,4779.7,4779.6,0.41848]
[1756076202769,0.3091,4779.7,4779.4,22.7598]
[1756076202770,0.3091,4779.7,4779.4,3.2078]
[1756076203077,1.3231,4780.0,4779.8,0.41846]
[1756076203277,0.5373,4779.9,4779.8,0.41846]
[1756076203473,0.9957,4779.7,4779.6,0.41847]
[1756076203674,1.6322,4779.7,4779.6,0.41847]
[1756076205379,2.34973656,4779.7,4779.6,0.41847]
[1756076205579,2.34973656,4779.7,4779.6,19.96647]
[1756076205879,1.03535242,4779.7,4779.6,19.96647]
[1756076206073,0.72625242,4779.7,4779.6,19.96647]
[1756076206275,0.31781586,4779.7,4779.6,19.96647]
[1756076206478,0.3091,4780.7,4780.0,1.04611]
[1756076206675,1.23641228,4780.6,4780.5,0.4184]
[1756076206876,2.00781228,4780.6,4780.5,19.9634]
[1756076207075,2.34961228,4780.6,4780.5,19.9634]
[1756076208271,1.35391228,4780.6,4780.5,19.9634]
[1756076208475,2.00781228,4780.6,4780.5,19.9634]
[1756076208677,1.2904,4780.3,4780.1,0.41843]
[1756076208878,0.3091,4780.3,4780.2,22.7548]
[1756076209076,0.9957,4781.1,4780.9,0.41835]
[1756076209275,1.3231,4781.1,4781.0,19.549]
[1756076209480,2.0041018,4781.1,4781.0,19.549]
[1756076209674,2.3459018,4781.1,4781.0,19.549]
[1756076209877,1.3676018,4781.1,4781.0,19.556]
[1756076210083,1.6322,4780.3,4780.2,3.62622]
[1756076210276,0.7137018,4780.3,4780.2,23.18222]
[1756076210481,1.0228018,4780.3,4780.2,23.18222]
[1756076211173,1.0228018,4780.3,4780.2,3.62622]
[1756076211377,1.5601018,4780.3,4780.2,23.18422]
[1756076211579,0.7137018,4780.3,4780.2,23.18422]
[1756076211773,1.1540018,4780.3,4780.2,23.18422]
[1756076211987,2.0041018,4780.3,4780.2,22.7658]
[1756076212378,2.3459018,4780.3,4780.2,19.558]
[1756076212675,0.6539,4779.4,4779.3,0.4185]
[1756076212878,2.3459018,4779.4,4779.3,19.568]
[1756076214083,1.3676018,4779.4,4779.0,3.2078]
[1756076214277,1.6322,4779.1,4779.0,3.2078]
[1756076214581,2.3459018,4779.1,4779.0,22.7718]
[1756076215179,2.3459018,4779.1,4779.0,3.2078]
[1756076215377,1.6322,4779.0,4778.2,3.2078]
[1756076215681,0.9783,4778.9,4778.2,3.2078]
[1756076215892,1.6322,4778.4,4778.3,19.557]
[1756076216074,0.2136,4778.0,4777.9,30.13]
[1756076216377,2.3459018,4778.0,4777.9,49.686]
[1756076218480,2.3459018,4778.0,4777.9,30.13]
[1756076218780,2.3459018,4778.0,4777.9,49.7]
[1756076219379,2.36383201,4778.0,4777.9,49.7]
[1756076220081,1.79163201,4778.0,4777.9,49.7]
[1756076220283,1.04073201,4778.0,4777.9,49.7]
[1756076220590,0.73163201,4778.0,4777.9,49.7]
[1756076220885,1.02713201,4778.0,4777.9,49.7]
[1756076221078,1.35233201,4778.0,4777.9,49.689]
[1756076221280,2.34393201,4778.0,4777.9,30.13]
[1756076221481,0.73163201,4778.0,4777.9,49.692]
[1756076221685,0.73163201,4778.0,4777.9,53.692]
[1756076221881,0.73163201,4778.0,4777.9,56.35269803]
[1756076222182,2.22612248,4779.7,4779.1,0.41852]
[1756076222385,0.9816,4779.7,4779.2,19.575]
[1756076222580,0.2955,4779.3,4779.2,19.575]
[1756076222981,0.2955,4779.7,4779.2,19.575]
[1756076223186,0.2955,4779.5,4779.2,19.575]
[1756076223487,0.2955,4780.0,4779.6,0.41847]
[1756076223690,0.3252,4780.2,4779.4,3.2078]
[1756076223691,0.2955,4779.9,4779.7,19.99546]
[1756076223878,0.2955,4779.9,4779.8,19.577]
[1756076224582,0.5073,4780.4,4779.8,19.577]
[1756076224784,0.6207,4780.3,4780.0,3.2078]
[1756076224988,0.6207,4780.3,4778.4,1.04644]
[1756076224989,0.6307,4780.1,4779.5,3.2078]
[1756076225284,1.48192248,4781.5,4779.6,19.576]
[1756076225285,0.6207,4780.2,4779.6,19.576]
[1756076225488,0.2955,4780.2,4779.8,0.41845]